bitfinex-derivatives/quotes_BTCF0:USTF0_20241214
["timestamp","ask_amount","ask_price","bid_price","bid_amount"]
[1734189369324,0.3608,101570.0,101560.0,2.24101871]
[1734189369524,0.3608,101570.0,101560.0,2.30227673]
[1734189370019,0.36227734,101580.0,101570.0,0.049224]
[1734189370221,0.410017,101590.0,101570.0,0.11048202]
[1734189370523,0.410017,101590.0,101580.0,0.11047702]
[1734189370912,0.3608,101590.0,101580.0,0.14217702]
[1734189371110,0.3608,101590.0,101580.0,1.70343504]
[1734189371320,0.3608,101590.0,101580.0,1.76713504]
[1734189374912,0.3608,101590.0,101580.0,1.70587702]
[1734189376121,0.3608,101590.0,101580.0,1.71558838]
[1734189378322,0.3613,101590.0,101580.0,1.71558838]
[1734189379029,0.3613,101590.0,101580.0,1.7768464]
[1734189379421,0.3608,101590.0,101580.0,1.7768464]
[1734189380329,0.3613,101590.0,101580.0,1.7768464]
[1734189381525,0.0005,101590.0,101580.0,0.2768464]
[1734189381936,0.0005,101590.0,101580.0,0.6376464]
[1734189382226,0.0005,101590.0,101580.0,2.3713504]
[1734189385925,0.0005,101590.0,101580.0,2.39070237]
[1734189386429,0.50236402,101610.0,101580.0,2.43992137]
[1734189386623,0.50236402,101610.0,101600.0,0.11046802]
[1734189386936,0.50236402,101610.0,101600.0,0.04921]
[1734189387526,0.50236402,101610.0,101600.0,1.54921]
[1734189388733,0.50236402,101610.0,101600.0,1.61046802]
[1734189390732,0.441106,101610.0,101600.0,1.61046802]
[1734189391438,0.441606,101610.0,101600.0,1.61046802]
[1734189392332,0.441106,101610.0,101600.0,1.61046802]
[1734189392533,0.3919,101610.0,101600.0,1.61046802]
[1734189393436,0.3924,101610.0,101600.0,1.61046802]
[1734189395336,0.3924,101610.0,101600.0,1.84417202]
[1734189396139,0.3924,101610.0,101600.0,1.8543068]
[1734189397243,0.0316,101610.0,101600.0,1.8543068]
[1734189397540,0.3924,101610.0,101600.0,1.8543068]
[1734189398341,0.3608,101610.0,101600.0,1.8543068]
[1734189398543,0.3608,101610.0,101600.0,1.91556482]
[1734189398744,0.3608,101610.0,101600.0,1.94666482]
[1734189399645,0.3608,101610.0,101600.0,2.23906226]
[1734189400539,0.3608,101610.0,101600.0,2.4788754]
[1734189401241,0.3608,101610.0,101600.0,1.88612681]
[1734189401635,0.47126302,101610.0,101600.0,1.85502681]
[1734189401943,0.440205,101610.0,101600.0,1.85502681]
[1734189402442,0.50146302,101610.0,101600.0,1.85502681]
[1734189404035,0.64838244,101610.0,101600.0,1.85502681]
[1734189404242,0.50146302,101610.0,101600.0,1.85502681]
[1734189404640,0.64838244,101610.0,101600.0,1.85502681]
[1734189412550,0.65816557,101610.0,101600.0,1.85502681]
[1734189413140,0.64838244,101610.0,101600.0,1.85502681]
[1734189414437,0.58712442,101610.0,101600.0,1.85502681]
[1734189416552,0.55692442,101610.0,101600.0,1.91628483]
[1734189416752,0.55692442,101610.0,101600.0,1.94758483]
[1734189416952,0.410005,101610.0,101600.0,2.18352173]
[1734189417254,0.3608,101610.0,101600.0,2.24477975]
[1734189417552,0.3608,101610.0,101600.0,2.30987975]
[1734189418252,0.410005,101610.0,101600.0,2.30987975]
[1734189418647,0.410005,101610.0,101600.0,2.30993767]
[1734189421460,0.410005,101610.0,101600.0,2.31051484]
[1734189422860,0.52802699,101610.0,101600.0,2.31051484]
[1734189427155,0.52802699,101610.0,101600.0,2.24925682]
[1734189428259,0.47882199,101610.0,101600.0,0.81051484]
[1734189428852,0.47882199,101610.0,101600.0,2.31051484]
[1734189429362,0.47882199,101610.0,101600.0,2.66139177]
[1734189430059,0.47882199,101610.0,101600.0,2.66230804]
[1734189430267,0.47882199,101610.0,101600.0,2.66230803]
[1734189430450,0.47882199,101610.0,101600.0,2.3114311]
[1734189430648,0.47882199,101610.0,101600.0,2.66230803]
[1734189431252,0.47882199,101610.0,101600.0,2.3114311]
[1734189431851,0.11802199,101610.0,101600.0,2.3114311]
[1734189432257,0.47882199,101620.0,101610.0,0.049205]
[1734189432459,0.47882199,101620.0,101610.0,0.64460361]
[1734189432764,0.47882199,101620.0,101610.0,0.63849549]
[1734189433557,0.47882199,101620.0,101610.0,0.34512774]
[1734189434356,0.47882199,101620.0,101610.0,1.84512774]
[1734189435560,0.47882199,101620.0,101610.0,2.13841723]
[1734189435751,0.47882199,101620.0,101610.0,2.378267]
[1734189436663,0.47882199,101620.0,101610.0,2.13841723]
[1734189438364,0.58928001,101620.0,101610.0,0.57715921]
[1734189438564,0.52802199,101620.0,101610.0,0.34504948]
[1734189438765,0.41,101620.0,101610.0,0.11046302]
[1734189439767,0.52793903,101620.0,101610.0,0.34501007]
[1734189440750,0.58919705,101620.0,101610.0,0.34501007]
[1734189440954,0.76832084,101620.0,101610.0,0.28375205]
[1734189441556,0.70706282,101620.0,101610.0,0.28375205]
[1734189441959,0.70706282,101620.0,101610.0,0.34501007]
[1734189443264,0.70706282,101620.0,101610.0,0.520954]
[1734189443463,0.70706282,101620.0,101610.0,0.34501007]
[1734189443866,0.58912379,101620.0,101610.0,0.34501007]
[1734189444163,0.7070846,101620.0,101610.0,0.34501007]
[1734189444368,0.7070846,101620.0,101610.0,1.84501007]
[1734189445571,0.51046081,101620.0,101610.0,1.84501007]
[1734189445766,0.47876081,101620.0,101610.0,1.84501007]
[1734189445973,0.47876081,101620.0,101610.0,2.14419175]
[1734189448772,0.47927336,101630.0,101620.0,0.0492]
[1734189449072,0.0005,101630.0,101620.0,1.13138599]
[1734189449269,0.0005,101630.0,101620.0,0.82928153]
[1734189449472,0.3608,101640.0,101620.0,1.12217068]
[1734189449664,0.3608,101640.0,101630.0,0.34477936]
[1734189450063,0.3608,101640.0,101630.0,0.63766851]
[1734189450266,0.50969995,101650.0,101630.0,2.08700145]
[1734189450471,0.00147616,101650.0,101640.0,0.12251604]
[1734189450779,0.00147616,101650.0,101640.0,1.10067845]
[1734189450965,0.00147616,101650.0,101640.0,1.13077845]
[1734189451162,0.3608,101660.0,101650.0,0.049186]
[1734189451368,0.3608,101660.0,101650.0,0.34440731]
[1734189451572,0.409981,101660.0,101650.0,0.34440731]
[1734189451772,0.47123902,101660.0,101650.0,0.45847709]
[1734189452069,0.47123902,101660.0,101640.0,0.55043611]
[1734189452276,0.409981,101660.0,101650.0,0.23658582]
[1734189452465,0.770781,101660.0,101650.0,0.28577182]
[1734189452666,0.83203902,101660.0,101650.0,0.11044402]
[1734189452870,0.049186,101650.0,101640.0,0.55041559]
[1734189453062,0.409986,101650.0,101640.0,0.37511031]
[1734189453267,0.409986,101650.0,101640.0,0.55041103]
[1734189454477,0.409986,101650.0,101640.0,0.31644774]
[1734189456162,0.441586,101650.0,101640.0,0.3266037]
[1734189456567,0.441586,101650.0,101640.0,0.26534568]
[1734189456768,0.441586,101650.0,101640.0,0.2959037]
[1734189456970,0.503086,101650.0,101640.0,0.23464568]
[1734189457166,0.56434402,101650.0,101640.0,0.07141398]
[1734189457375,0.503086,101650.0,101640.0,0.07141398]
[1734189458580,0.503086,101650.0,101640.0,0.12060398]
[1734189459680,0.503086,101650.0,101640.0,0.11044802]
[1734189460066,0.503086,101650.0,101640.0,1.61044802]
[1734189463898,0.503086,101650.0,101640.0,1.56125802]
[1734189465391,0.56434402,101650.0,101640.0,1.56125802]
[1734189465778,0.56434402,101650.0,101640.0,1.5]
[1734189467587,0.503086,101650.0,101640.0,1.5]
[1734189467890,0.56434402,101650.0,101640.0,1.56125802]
[1734189469293,0.409986,101650.0,101640.0,1.56125802]
[1734189469595,0.409986,101650.0,101640.0,0.11044802]
[1734189469885,0.409986,101650.0,101640.0,1.81894874]
[1734189473387,0.47124402,101650.0,101640.0,1.75769072]
[1734189473587,0.47124402,101650.0,101640.0,0.25769072]
[1734189473890,0.409986,101650.0,101640.0,0.31894874]
[1734189474187,0.47124402,101650.0,101640.0,1.81894874]
[1734189474384,0.47124402,101650.0,101640.0,0.22449072]
[1734189474995,0.506086,101650.0,101640.0,0.28574874]
[1734189476983,0.56734402,101650.0,101640.0,0.22449072]
[1734189477588,0.71476781,101650.0,101640.0,0.45845401]
[1734189478295,0.65176781,101650.0,101640.0,0.45845401]
[1734189481397,0.65176781,101650.0,101640.0,0.40926401]
[1734189481594,0.65176781,101650.0,101640.0,0.40984417]
[1734189486001,0.82867635,101650.0,101640.0,0.40984417]
[1734189486493,0.68125256,101650.0,101640.0,0.40984417]
[1734189488102,0.82875744,101650.0,101640.0,0.40984417]
[1734189491198,0.68125256,101650.0,101640.0,0.40984417]
[1734189491394,0.68125256,101650.0,101640.0,0.17588088]
[1734189492411,1.16217418,101650.0,101630.0,0.23396329]
[1734189492598,1.16217418,101650.0,101630.0,0.17600108]
[1734189492599,0.82235927,101640.0,101630.0,0.17600108]
[1734189492799,0.77452225,101640.0,101630.0,0.17600108]
[1734189492997,0.049195,101630.0,101620.0,0.26486329]
[1734189493204,0.61876976,101630.0,101620.0,0.26486329]
[1734189493711,0.61876976,101630.0,101620.0,0.26536329]
[1734189494500,0.61876976,101630.0,101620.0,0.26486329]
[1734189495007,0.61876976,101630.0,101620.0,0.0309]
[1734189495412,0.65056976,101630.0,101620.0,0.0309]
[1734189495707,0.65056976,101630.0,101620.0,0.0314]
[1734189496612,0.0492,101620.0,101610.0,1.79479117]
[1734189496800,0.55965664,101620.0,101610.0,1.79479117]
[1734189499608,0.55965664,101620.0,101610.0,1.79529117]
[1734189501709,0.55965664,101620.0,101610.0,1.85654919]
[1734189501905,0.49839862,101620.0,101610.0,1.85654919]
[1734189502210,0.55965664,101620.0,101610.0,1.85654919]
[1734189502909,0.49839862,101620.0,101610.0,1.85654919]
[1734189503803,0.49839862,101620.0,101610.0,0.35654919]
[1734189504006,0.44919862,101620.0,101610.0,0.35654919]
[1734189504306,0.44919862,101620.0,101610.0,1.85654919]
[1734189504513,0.3608,101620.0,101610.0,2.14943834]
[1734189504897,0.3608,101620.0,101610.0,2.14507349]
[1734189505101,0.3608,101620.0,101610.0,2.37925141]
[1734189505298,0.3608,101620.0,101610.0,1.85676382]
[1734189505299,0.49839862,101620.0,101610.0,1.85676382]
[1734189505507,0.49839862,101620.0,101610.0,2.14965297]
[1734189505705,0.49839862,101620.0,101610.0,1.85676382]
[1734189506003,0.0492,101620.0,101610.0,2.37946914]
[1734189506205,0.51045664,101630.0,101610.0,2.37946644]
[1734189506404,0.55965464,101630.0,101620.0,0.34807792]
[1734189506598,0.55965464,101630.0,101620.0,0.37847792]
[1734189508810,0.67745901,101630.0,101620.0,0.43973594]
[1734189509613,0.58906039,101630.0,101620.0,0.43973594]
[1734189509907,0.58906039,101630.0,101620.0,0.37847792]
[1734189510209,0.58906039,101630.0,101620.0,0.43973594]
[1734189510409,0.67742749,101630.0,101620.0,0.43973594]
[1734189510912,0.67742749,101630.0,101620.0,0.37847792]
[1734189511413,0.58906039,101630.0,101620.0,0.37847792]
[1734189512716,0.58906039,101630.0,101620.0,0.34807792]
[1734189514119,0.0492,101620.0,101610.0,0.58839595]
[1734189514313,0.67746264,101620.0,101610.0,0.58839595]
[1734189514513,0.67746264,101620.0,101610.0,1.7955068]
[1734189515614,0.67746264,101620.0,101610.0,1.7950068]
[1734189516117,0.58906239,101620.0,101610.0,1.7950068]
[1734189517107,0.58906239,101620.0,101610.0,1.85626482]
[1734189517508,0.58906239,101620.0,101610.0,1.7950068]
[1734189518006,0.67749877,101620.0,101610.0,2.08789595]
[1734189518210,0.67749877,101620.0,101610.0,2.31813959]
[1734189518414,0.67749877,101620.0,101610.0,2.08789595]
[1734189518921,0.67749877,101620.0,101610.0,2.14915397]
[1734189519123,0.58906239,101620.0,101610.0,2.37920478]
[1734189519508,0.58906239,101620.0,101610.0,2.14915397]
[1734189520212,0.58906239,101620.0,101610.0,2.37908576]
[1734189520815,0.52780437,101620.0,101610.0,2.37908576]
[1734189521011,0.52780437,101620.0,101610.0,2.37953716]
[1734189521216,0.52780437,101620.0,101610.0,2.14490784]
[1734189522520,0.52780437,101620.0,101610.0,1.91497605]
[1734189522725,0.52780437,101620.0,101610.0,2.14479428]
[1734189522921,0.52780437,101620.0,101610.0,2.14331815]
[1734189534629,0.58906239,101620.0,101610.0,2.08206013]
[1734189535739,0.58906239,101620.0,101610.0,1.8522419]
[1734189535947,0.58906239,101620.0,101610.0,2.08280886]
[1734189536646,0.58906239,101620.0,101610.0,2.14406688]
[1734189537047,0.52780437,101620.0,101610.0,2.14406688]
[1734189541453,0.52780437,101620.0,101610.0,0.64406688]
[1734189542054,0.52805122,101620.0,101610.0,2.14406688]
[1734189542250,0.41,101620.0,101610.0,2.14406688]
[1734189543548,0.55751674,101620.0,101610.0,2.14406688]
[1734189545355,0.67559797,101620.0,101610.0,2.14406688]
[1734189546556,0.55751674,101620.0,101610.0,2.14406688]
[1734189547160,0.67559724,101620.0,101610.0,2.14406688]
[1734189547350,0.55751674,101620.0,101610.0,2.14406688]
[1734189547756,0.67559737,101620.0,101610.0,2.14406688]
[1734189548150,0.55751674,101620.0,101610.0,2.14406688]
[1734189548760,0.67559734,101620.0,101610.0,2.14406688]
[1734189549957,0.55751674,101620.0,101610.0,2.14406688]
[1734189551449,0.55751674,101620.0,101610.0,2.14294455]
[1734189554054,0.50831674,101620.0,101610.0,2.20420257]
[1734189554355,0.56743841,101620.0,101610.0,1.03668654]
[1734189554550,0.56743841,101620.0,101610.0,0.97542852]
[1734189554755,0.56743841,101620.0,101610.0,2.47542852]
[1734189555661,0.56743841,101620.0,101610.0,2.20187597]
[1734189557357,0.44935765,101620.0,101610.0,2.20187597]
[1734189558268,0.44935765,101620.0,101610.0,2.26313399]
[1734189560567,0.44935765,101620.0,101610.0,2.2625767]
[1734189562168,0.44935765,101620.0,101610.0,2.55576552]
[1734189563756,0.44935765,101620.0,101610.0,2.4945075]
[1734189564865,0.44935765,101620.0,101610.0,2.49448142]
[1734189565768,0.44935765,101620.0,101610.0,2.55573944]
[1734189566069,0.44935765,101620.0,101610.0,2.49448142]
[1734189566569,0.44935765,101620.0,101610.0,2.55573944]
[1734189566970,0.44935765,101620.0,101610.0,2.49448142]
[1734189567469,0.3608,101620.0,101610.0,1.62061077]
[1734189567875,0.3608,101620.0,101610.0,1.68186879]
[1734189568172,0.4492718,101620.0,101610.0,2.49457663]
[1734189569567,0.4984718,101620.0,101610.0,2.43331861]
[1734189569865,0.67769222,101620.0,101610.0,0.5815135]
[1734189570171,0.6164342,101620.0,101610.0,0.64277152]
[1734189570472,0.6164342,101620.0,101610.0,2.14277152]
[1734189571769,0.5279624,101620.0,101610.0,2.14277152]
[1734189572464,0.58922042,101620.0,101610.0,1.7447493]
[1734189572664,0.61871102,101620.0,101610.0,1.7447493]
[1734189573266,0.79565462,101620.0,101610.0,1.7447493]
[1734189573473,0.79565462,101620.0,101610.0,1.51014875]
[1734189573474,0.61871102,101620.0,101610.0,1.51014875]
[1734189573863,0.61871102,101620.0,101610.0,1.7447493]
[1734189574574,0.73666114,101620.0,101610.0,1.7447493]
[1734189575270,0.61871102,101620.0,101610.0,1.7447493]
[1734189576070,0.61871102,101620.0,101610.0,1.51014875]
[1734189576672,0.61871102,101620.0,101610.0,1.7447493]
[1734189577469,0.62838487,101620.0,101610.0,1.51014875]
[1734189578867,0.68964289,101620.0,101610.0,1.51014875]
[1734189579971,0.68964289,101620.0,101610.0,1.50010025]
[1734189584469,0.32884289,101620.0,101610.0,1.50010025]
[1734189584770,1.05044289,101620.0,101610.0,1.50010025]
[1734189592480,1.05044289,101620.0,101610.0,0.00010025]
[1734189593073,1.05044289,101620.0,101610.0,1.50010025]
[1734189593776,1.05044289,101620.0,101610.0,0.00010025]
[1734189596681,1.05044289,101620.0,101610.0,0.03020025]
[1734189600383,1.07993349,101620.0,101610.0,0.03020025]
[1734189604780,1.07993349,101620.0,101610.0,0.2648008]
[1734189607188,0.95741745,101620.0,101610.0,0.2648008]
[1734189607490,1.07993349,101620.0,101610.0,0.2648008]
[1734189607983,0.95741745,101620.0,101610.0,0.2648008]
[1734189608182,1.07993349,101620.0,101610.0,0.2648008]
[1734189611183,0.90298989,101620.0,101610.0,0.2648008]
[1734189611486,0.95741745,101620.0,101610.0,0.2648008]
[1734189611689,0.95741745,101620.0,101610.0,0.37526382]
[1734189611690,1.09535411,101620.0,101610.0,0.37526382]
[1734189611990,0.91841051,101620.0,101610.0,0.37526382]
[1734189612292,0.91841051,101620.0,101610.0,0.37565439]
[1734189612490,0.97966853,101620.0,101610.0,0.37565439]
[1734189618991,0.97966853,101620.0,101610.0,0.31439637]
[1734189620393,1.09763619,101620.0,101610.0,0.31439637]
[1734189620994,0.37603619,101620.0,101610.0,0.31439637]
[1734189621202,1.09763619,101620.0,101610.0,0.31439637]
[1734189624804,0.97966853,101620.0,101610.0,0.31439637]
[1734189625021,0.91841051,101620.0,101610.0,0.37565439]
[1734189625517,1.03636878,101620.0,101610.0,0.37565439]
[1734189626415,0.91841051,101620.0,101610.0,0.37565439]
[1734189627012,0.97966853,101620.0,101610.0,0.37565439]
[1734189627209,0.97966853,101620.0,101610.0,0.31439637]
[1734189627711,0.97966853,101620.0,101610.0,1.81439637]
[1734189630019,0.97966853,101620.0,101610.0,1.87565439]
[1734189630223,0.91841051,101620.0,101610.0,1.87565439]
[1734189632621,1.03638472,101620.0,101610.0,1.87565439]
[1734189634323,0.31478472,101620.0,101610.0,1.87565439]
[1734189634523,1.03638472,101620.0,101610.0,1.87565439]
[1734189634917,0.31478472,101620.0,101610.0,1.87565439]
[1734189635115,0.86921051,101620.0,101610.0,1.87565439]
[1734189635418,0.56727566,101620.0,101610.0,0.6634576]
[1734189635618,0.56727566,101620.0,101610.0,1.01526271]
[1734189635818,0.44928938,101620.0,101610.0,2.1634576]
[1734189636025,0.44928938,101620.0,101610.0,2.51526271]
[1734189636323,0.56727566,101620.0,101610.0,2.16325837]
[1734189637323,0.44928938,101620.0,101610.0,2.16325837]
[1734189637827,0.56727566,101620.0,101610.0,2.16325837]
[1734189639216,0.44928938,101620.0,101610.0,2.16325837]
[1734189640926,0.44928938,101620.0,101610.0,2.16332689]
[1734189644928,0.44928938,101620.0,101610.0,2.10206887]
[1734189645134,0.44928938,101620.0,101610.0,2.16332689]
[1734189645325,0.44928938,101620.0,101610.0,0.66332689]
[1734189645730,0.44928938,101620.0,101610.0,2.16332689]
[1734189647020,0.44928938,101620.0,101610.0,2.10206887]
[1734189647226,0.44928938,101620.0,101610.0,2.16332689]
[1734189650839,0.44928938,101620.0,101610.0,0.66332689]
[1734189651239,0.44928938,101620.0,101610.0,2.16332689]
[1734189651432,0.44928938,101620.0,101610.0,2.16386278]
[1734189652839,0.5597474,101620.0,101610.0,2.16391691]
[1734189654435,0.5597474,101620.0,101610.0,2.10265889]
[1734189654639,1.03853368,101620.0,101610.0,2.07255889]
[1734189654828,0.9500443,101620.0,101610.0,2.30750406]
[1734189655026,0.9500443,101620.0,101610.0,1.78425042]
[1734189656742,0.9500443,101620.0,101610.0,1.84550844]
[1734189656927,0.9500443,101620.0,101610.0,2.13867936]
[1734189658733,0.9500443,101620.0,101610.0,2.36883805]
[1734189661948,0.9500443,101620.0,101610.0,2.36888752]
[1734189662244,0.9500443,101620.0,101610.0,2.3076295]
[1734189668042,0.88878628,101620.0,101610.0,2.3076295]
[1734189668244,0.92806324,101620.0,101610.0,2.13394235]
[1734189668446,0.92806324,101620.0,101610.0,2.19544235]
[1734189668641,0.56726324,101620.0,101610.0,2.19544235]
[1734189669047,0.44927696,101620.0,101610.0,2.19544235]
[1734189669639,0.44927696,101620.0,101610.0,2.54724746]
[1734189670039,0.44927696,101620.0,101610.0,2.19544235]
[1734189670245,0.44927696,101620.0,101610.0,2.54724746]
[1734189671841,0.44927696,101620.0,101610.0,2.54669654]
[1734189672635,0.44927696,101620.0,101610.0,2.48543852]
[1734189672844,0.44927696,101620.0,101610.0,2.54669654]
[1734189675248,0.44927696,101620.0,101610.0,2.3170393]
[1734189675445,0.44927696,101620.0,101610.0,2.54679125]
[1734189675950,0.56726324,101620.0,101610.0,2.54679125]
[1734189678348,0.56726324,101620.0,101610.0,2.48553323]
[1734189678652,0.56726324,101620.0,101610.0,2.54679125]
[1734189684962,0.44927696,101620.0,101610.0,2.54679125]
[1734189685161,0.44927696,101620.0,101610.0,2.25362033]
[1734189695549,0.56726324,101620.0,101610.0,2.25362033]
[1734189696561,0.56726324,101620.0,101610.0,2.52690893]
[1734189697663,0.56726324,101620.0,101610.0,2.52666536]
[1734189697857,0.56726324,101620.0,101610.0,2.46540734]
[1734189698056,0.56726324,101620.0,101610.0,2.52666536]
[1734189702068,0.56726324,101620.0,101610.0,2.52688389]
[1734189703554,0.08847696,101620.0,101610.0,2.88760889]
[1734189703860,0.20646324,101620.0,101610.0,2.52680889]
[1734189704061,0.08847696,101620.0,101610.0,2.52680889]
[1734189705870,0.08847696,101620.0,101610.0,2.52784608]
[1734189706664,0.08847696,101620.0,101610.0,2.52785267]
[1734189706865,0.47928628,101630.0,101620.0,0.0492]
[1734189707065,0.47928628,101630.0,101620.0,1.04804243]
[1734189707274,0.47928628,101630.0,101620.0,0.78684682]
[1734189707568,0.47928628,101630.0,101620.0,2.28684682]
[1734189707771,0.11798628,101630.0,101620.0,2.64764682]
[1734189707968,0.11798628,101640.0,101620.0,2.64764682]
[1734189708165,0.11798628,101640.0,101630.0,0.40432344]
[1734189708366,0.11798628,101640.0,101630.0,0.63380533]
[1734189708865,0.11848628,101640.0,101630.0,0.63380533]
[1734189709063,0.11848628,101640.0,101630.0,0.98665422]
[1734189709260,0.11848628,101640.0,101630.0,1.01865422]
[1734189709565,0.0005,101640.0,101630.0,0.72706335]
[1734189709766,0.65829679,101650.0,101630.0,1.11221224]
[1734189710071,0.14988628,101650.0,101640.0,0.46557646]
[1734189710259,0.14988628,101650.0,101640.0,0.69505835]
[1734189710260,0.11798628,101650.0,101640.0,0.69505835]
[1734189710869,0.55906851,101660.0,101650.0,0.049186]
[1734189711072,0.52930266,101660.0,101650.0,0.52120134]
[1734189711372,0.67691317,101660.0,101650.0,0.52120134]
[1734189711676,0.11932066,101660.0,101650.0,0.52120134]
[1734189711866,0.11932066,101660.0,101650.0,0.34516249]
[1734189712064,0.001476,101660.0,101650.0,0.73104207]
[1734189712376,0.001476,101660.0,101650.0,0.76174207]
[1734189712563,0.001476,101660.0,101650.0,1.12254207]
[1734189713065,0.001476,101660.0,101650.0,2.97539096]
[1734189713267,0.50934466,101680.0,101670.0,0.049176]
[1734189713570,0.3915,101680.0,101670.0,0.28616452]
[1734189715477,0.3915,101680.0,101670.0,0.11043402]
[1734189716673,0.3915,101680.0,101670.0,0.049176]
[1734189716972,0.3915,101680.0,101670.0,0.11043402]
[1734189717371,0.3915,101680.0,101670.0,0.12039612]
[1734189718577,0.3915,101680.0,101670.0,1.62039612]
[1734189724970,0.392,101680.0,101670.0,1.62039612]
[1734189728386,0.392,101680.0,101670.0,1.63978005]
[1734189730572,0.3613,101680.0,101670.0,1.63978005]
[1734189730774,0.3613,101680.0,101670.0,1.67158005]
[1734189733582,0.410471,101680.0,101670.0,1.67158005]
[1734189735473,0.410471,101680.0,101670.0,1.84731055]
[1734189735774,0.410471,101680.0,101670.0,1.67158005]
[1734189735976,0.409971,101680.0,101670.0,1.84731055]
[1734189736979,0.409971,101680.0,101670.0,1.78605253]
[1734189737286,0.409971,101680.0,101670.0,1.84731055]
[1734189737492,0.52781566,101680.0,101670.0,1.84731055]
[1734189738378,0.52781566,101680.0,101670.0,2.08161789]
[1734189739376,0.47864466,101680.0,101670.0,2.08161789]
[1734189740785,0.52781566,101680.0,101670.0,1.84462937]
[1734189740981,0.52781566,101680.0,101670.0,1.90588739]
[1734189741586,0.55758151,101680.0,101670.0,2.4336799]
[1734189742391,0.55758151,101680.0,101670.0,2.19883612]
[1734189742887,0.55758151,101680.0,101670.0,2.19893004]
[1734189747195,0.55758151,101680.0,101670.0,2.199033]
[1734189749304,0.19678151,101680.0,101670.0,2.199033]
[1734189749495,0.50841051,101680.0,101670.0,2.199033]
[1734189750392,0.62643216,101680.0,101670.0,2.199033]
[1734189750597,0.62643216,101680.0,101670.0,2.13777498]
[1734189750793,0.62643216,101680.0,101670.0,2.55188189]
[1734189751601,0.62643216,101680.0,101670.0,2.55185358]
[1734189753006,0.11802165,101680.0,101670.0,2.55185358]
[1734189753410,0.11802165,101680.0,101670.0,0.76026271]
[1734189753708,0.11852165,101690.0,101680.0,0.049171]
[1734189753897,0.11852165,101690.0,101680.0,2.5911484]
[1734189755603,0.0005,101690.0,101680.0,2.94399729]
[1734189756608,0.0005,101690.0,101680.0,2.5911484]
[1734189757109,0.77882165,101700.0,101690.0,0.049166]
[1734189757297,0.77882165,101700.0,101690.0,0.37713396]
[1734189757898,0.77932165,101700.0,101690.0,0.37713396]
[1734189759113,0.77882165,101700.0,101690.0,0.37713396]
[1734189759906,0.77932165,101700.0,101690.0,0.37713396]
[1734189760708,0.77932165,101700.0,101690.0,0.46869198]
[1734189760906,0.6608,101700.0,101690.0,0.76221288]
[1734189761301,0.3,101700.0,101690.0,2.32923355]
[1734189761505,0.3,101700.0,101690.0,2.62228503]
[1734189761914,0.3005,101700.0,101690.0,2.62228503]
[1734189762917,0.3,101700.0,101690.0,2.62228503]
[1734189763809,0.3,101700.0,101690.0,2.63206623]
[1734189764011,0.3005,101700.0,101690.0,2.63206623]
[1734189764411,0.3005,101700.0,101690.0,2.63219193]
[1734189764614,0.3005,101700.0,101690.0,2.69358497]
[1734189764925,0.3,101700.0,101690.0,2.69358497]
[1734189765120,0.48002165,101740.0,101730.0,0.049147]
[1734189765319,0.362,101740.0,101730.0,0.17166304]
[1734189765616,0.0012,101740.0,101730.0,0.5808903]
[1734189765821,0.0012,101740.0,101730.0,0.40550719]
[1734189766320,0.2522,101760.0,101730.0,1.3025296]
[1734189766622,0.23132739,101770.0,101760.0,0.049132]
[1734189766918,0.26362739,101770.0,101760.0,0.11039002]
[1734189767111,0.14560574,101770.0,101750.0,1.8608]
[1734189767319,0.049132,101760.0,101750.0,2.00266632]
[1734189769918,0.049632,101760.0,101750.0,0.50266632]
[1734189770520,0.049632,101760.0,101750.0,0.409937]
[1734189771427,0.049632,101760.0,101740.0,2.00266932]
[1734189771428,0.049137,101750.0,101740.0,2.00266932]
[1734189772020,0.049137,101750.0,101740.0,0.51237047]
[1734189772421,0.049137,101750.0,101740.0,0.41964115]
[1734189772625,0.079537,101750.0,101740.0,0.41964115]
[1734189773221,0.079537,101750.0,101740.0,0.51237047]
[1734189773523,0.410433,101760.0,101750.0,0.049137]
[1734189773731,0.049633,101760.0,101750.0,0.049137]
[1734189773922,0.049137,101750.0,101740.0,0.41964215]
[1734189774317,0.114237,101750.0,101740.0,0.41964215]
[1734189775125,0.114237,101750.0,101740.0,0.05884215]
[1734189776919,0.20696632,101750.0,101740.0,0.05884215]
[1734189777325,0.20696632,101750.0,101740.0,0.00970115]
[1734189777524,0.114237,101750.0,101740.0,0.049142]
[1734189781233,0.114237,101750.0,101740.0,1.549142]
[1734189782128,0.145737,101750.0,101740.0,1.549142]
[1734189787232,0.20661385,101750.0,101740.0,1.549142]
[1734189789439,0.3246355,101750.0,101740.0,1.549142]
[1734189791443,0.049142,101740.0,101730.0,0.59496052]
[1734189791641,0.11001885,101740.0,101730.0,0.59496052]
[1734189791843,0.11001885,101740.0,101730.0,2.09496052]
[1734189792237,0.049142,101740.0,101730.0,2.09496052]
[1734189792546,0.049142,101740.0,101730.0,2.38968152]
[1734189794347,0.16716365,101740.0,101730.0,2.50702231]
[1734189795041,0.16716365,101740.0,101730.0,2.44614546]
[1734189795338,0.16716365,101740.0,101730.0,2.6821031]
[1734189796041,0.2280405,101740.0,101730.0,2.6821031]
[1734189797846,0.2280405,101740.0,101730.0,2.44614546]
[1734189798143,0.67930621,101740.0,101730.0,1.91967514]
[1734189798444,0.67898059,101740.0,101730.0,0.17577886]
[1734189798653,0.67898059,101740.0,101710.0,0.52664933]
[1734189798654,0.049147,101730.0,101710.0,0.52664933]
[1734189798841,0.3486684,101720.0,101710.0,0.23434415]
[1734189799033,0.049157,101710.0,101700.0,0.71577778]
[1734189799241,0.37511659,101710.0,101700.0,0.71577778]
[1734189799545,0.22785389,101710.0,101700.0,1.85497778]
[1734189799743,0.22785389,101710.0,101700.0,1.62113363]
[1734189799945,0.37511659,101710.0,101700.0,1.62163363]
[1734189800537,0.22785389,101710.0,101700.0,1.62163363]
[1734189800941,0.22785389,101710.0,101700.0,1.62113363]
[1734189801648,0.22785389,101710.0,101700.0,1.61965893]
[1734189802046,0.22785389,101710.0,101700.0,1.62015893]
[1734189803149,0.22785389,101710.0,101700.0,1.61965893]
[1734189803945,0.22785389,101710.0,101700.0,1.5612]
[1734189804147,0.22785389,101710.0,101700.0,1.5311]
[1734189804343,0.58865389,101710.0,101700.0,1.5311]
[1734189804650,0.58865389,101710.0,101700.0,0.0311]
[1734189804651,0.79679344,101710.0,101700.0,0.0311]
[1734189804837,0.73591659,101710.0,101700.0,0.0311]
[1734189805038,0.61809655,101710.0,101700.0,0.0306]
[1734189805238,0.65007554,101710.0,101700.0,0.0306]
[1734189805449,0.76750377,101710.0,101700.0,0.0306]
[1734189806044,0.62024107,101710.0,101700.0,0.0311]
[1734189806244,0.62024107,101710.0,101700.0,0.0005]
[1734189806454,0.79830377,101710.0,101700.0,0.0005]
[1734189806638,0.68284107,101710.0,101700.0,0.0005]
[1734189807050,0.83010377,101710.0,101700.0,0.0005]